fUST/lending_fUST_20240611
["ID","MTS","AMOUNT","RATE_DAILY","PERIOD"]
[329086022,1718093443401,-500.0,0.00022972,2]
[329086023,1718093443411,-500.0,0.00022972,2]
[329086024,1718093443422,-500.0,0.00022972,2]
[329086025,1718093443432,-500.0,0.00022972,2]
[329086026,1718093443443,-500.0,0.00022972,2]
[329086027,1718093443453,-624.144913,0.00022972,2]
[329086028,1718093443463,-542.793362,0.00022972,2]
[329086029,1718093443473,-1870.225142,0.00022972,2]
[329086030,1718093443484,-1626.476301,0.00022972,2]
[329086031,1718093443494,-1000.0,0.00023,2]
[329086032,1718093443504,-187788.87150003,0.00023,2]
[329086033,1718093443514,-500.0,0.00023013,2]
[329086034,1718093443524,-504.692188,0.00023013,2]
[329086035,1718093443534,-500.0,0.00023013,2]
[329086036,1718093443544,-503.85690776,0.00023013,2]
[329086037,1718093443553,-507.80046757,0.00023013,2]
[329086038,1718093443563,-500.0,0.00023013,2]
[329086039,1718093443575,-500.0,0.00023013,2]
[329086040,1718093443585,-500.0,0.00023013,2]
[329086041,1718093443595,-500.0,0.00023013,2]
[329086042,1718093443606,-500.0,0.00023013,2]
[329086043,1718093443616,-500.0,0.00023013,2]
[329086044,1718093443626,-500.0,0.00023013,2]
[329086045,1718093443637,-2692.86,0.00023013,2]
[329086046,1718093443648,-500.0,0.00023013,2]
[329086047,1718093443658,-500.0,0.00023013,2]
[329086048,1718093443669,-500.0,0.00023013,2]
[329086049,1718093443684,-500.0,0.00023013,2]
[329086050,1718093443694,-509.63947679,0.00023013,2]
[329086051,1718093443704,-500.0,0.00023013,2]
[329086052,1718093443714,-500.0,0.00023013,2]
[329086053,1718093443726,-345.36,0.00023013,2]
[329086054,1718093443736,-500.0,0.00023013,2]
[329086055,1718093443746,-1548.22,0.00023013,2]
[329086056,1718093443757,-500.0,0.00023013,2]
[329086057,1718093443770,-500.0,0.00023013,2]
[329086058,1718093443785,-500.0,0.00023013,2]
[329086059,1718093443796,-840.34,0.00023013,2]
[329086060,1718093443806,-500.0,0.00023013,2]
[329086061,1718093443817,-151.02869545,0.00023049,4]
[329086062,1718093443827,-500.0,0.00023107,7]
[329086063,1718093443838,-500.0,0.00023107,7]
[329086064,1718093443848,-500.0,0.00023107,7]
[329086065,1718093443859,-500.0,0.00023107,7]
[329086066,1718093443870,-500.0,0.00023107,7]
[329086067,1718093443880,-343.72,0.00023107,7]
[329086068,1718093443890,-500.0,0.00023246,2]
[329086069,1718093443900,-500.0,0.00023246,2]
[329086070,1718093443910,-500.0,0.00023246,2]
[329086071,1718093443920,-500.0,0.00023246,2]
[329086072,1718093443931,-500.0,0.00023246,2]
[329086073,1718093443941,-500.0,0.00023246,2]
[329086074,1718093443951,-500.0,0.00023246,2]
[329086075,1718093443960,-500.0,0.00023255,2]
[329086076,1718093443970,-500.0,0.00023255,2]
[329086077,1718093443980,-626.41092337,0.00023255,2]
[329086078,1718093443990,-507.92692533,0.00023255,2]
[329086079,1718093444000,-500.0,0.00023255,2]
[329086080,1718093444010,-500.0,0.00023255,2]
[329086081,1718093444021,-500.0,0.00023255,2]
[329086082,1718093444031,-500.0,0.00023255,2]
[329086083,1718093444042,-500.0,0.00023255,2]
[329086084,1718093444052,-500.0,0.00023255,2]
[329086085,1718093444062,-613.73470245,0.00023255,2]
[329086086,1718093444074,-500.0,0.00023255,2]
[329086087,1718093444084,-500.0,0.00023255,2]
[329086088,1718093444095,-500.0,0.00023255,2]
[329086089,1718093444106,-500.0,0.00023255,2]
[329086090,1718093444116,-500.0,0.00023255,2]
[329086091,1718093444126,-512.02990465,0.00023255,2]
[329086092,1718093444137,-500.0,0.00023255,2]
[329086093,1718093444148,-500.85719911,0.00023255,2]
[329086094,1718093444162,-500.0,0.00023255,2]
[329086095,1718093444173,-500.0,0.00023255,2]
[329086096,1718093444268,-502.11987848,0.00023255,2]
[329086097,1718093444293,-500.0,0.00023255,2]
[329086098,1718093444304,-500.0,0.00023255,2]
[329086099,1718093444314,-500.0,0.00023255,2]
[329086100,1718093444327,-500.0,0.00023255,2]
[329086101,1718093444338,-634.69146799,0.00023255,2]
[329086102,1718093444348,-1250.16,0.00023255,2]
[329086103,1718093444358,-511.04772201,0.00023255,2]
[329086104,1718093444368,-500.0,0.00023255,2]
[329086105,1718093444378,-500.0,0.00023255,2]
[329086106,1718093444389,-508.02677773,0.00023255,2]
[329086107,1718093444399,-500.0,0.00023255,2]
[329086108,1718093444410,-500.0,0.00023255,2]
[329086109,1718093444420,-500.0,0.00023255,2]
[329086110,1718093444430,-500.0,0.00023255,2]
[329086111,1718093444441,-543.65113368,0.00023255,2]
[329086112,1718093444451,-500.0,0.00023255,2]
[329086113,1718093444462,-500.0,0.00023255,2]
[329086114,1718093444472,-502.82621695,0.00023255,2]
[329086115,1718093444483,-500.0,0.00023255,2]
[329086116,1718093444493,-504.60574249,0.00023255,2]
[329086117,1718093444503,-500.0,0.00023255,2]
[329086118,1718093444513,-500.0,0.00023255,2]
[329086119,1718093444524,-500.0,0.00023255,2]
[329086120,1718093444534,-500.0,0.00023255,2]
[329086121,1718093444545,-500.0,0.00023255,2]
[329086122,1718093444556,-500.0,0.00023255,2]
[329086123,1718093444570,-500.0,0.00023255,2]
[329086124,1718093444580,-503.39208149,0.00023255,2]
[329086125,1718093444590,-500.0,0.00023255,2]
[329086126,1718093444600,-500.0,0.00023255,2]
[329086127,1718093444610,-501.83294603,0.00023255,2]
[329086128,1718093444620,-500.0,0.00023255,2]
[329086130,1718093444631,-500.0,0.00023255,2]
[329086132,1718093444642,-500.0,0.00023255,2]
[329086134,1718093444653,-503.47289318,0.00023255,2]
[329086137,1718093444664,-500.0,0.00023255,2]
[329086139,1718093444676,-472.06140797,0.00023255,2]
[329086141,1718093444688,-6322.29175139,0.00023255,2]
[329086146,1718093444739,-1392.03651275,0.00023255,2]
[329086172,1718093445035,-603.98478864,0.00023255,2]
[329086177,1718093445198,-553.13780555,0.00023255,2]
[329086187,1718093445711,-741.37782201,0.00023255,2]
[329086189,1718093445724,-318.41271715,0.00023255,2]
[329086219,1718093448517,-500.0,0.00021917,2]
[329086220,1718093448528,-98.30034209,0.00021917,2]
[329086221,1718093469917,838.34008299,9.999e-05,2]
[329086222,1718093473559,1156.26228974,9.999e-05,2]
[329086223,1718093476251,522.52844886,9.999e-05,2]
[329086224,1718093477492,927.63941968,9.999e-05,2]
[329086225,1718093492393,9986.09371021,0.00018392,15]
[329086226,1718093496441,1523.79883539,9.999e-05,2]
[329086227,1718093502051,155.0294556,9.999e-05,2]
[329086228,1718093503009,216.36344179,9.999e-05,2]
[329086229,1718093507886,303.336601,9.999e-05,2]
[329086230,1718093510866,155.0294556,9.999e-05,2]
[329086231,1718093512374,195.13677025,9.999e-05,2]
[329086232,1718093513176,722.49195225,9.999e-05,2]
[329086233,1718093513753,552.55976636,9.999e-05,2]
[329086234,1718093515346,155.0294556,9.999e-05,2]
[329086235,1718093518523,526.5926666,9.999e-05,2]
[329086236,1718093532569,524.80484914,0.00013792,2]
[329086237,1718093869731,471.22,0.00010959,2]
[329086238,1718093883401,273.37336231,9.9e-05,2]
[329086239,1718093891366,218.41129239,9.9e-05,2]
[329086240,1718093940241,774.74457218,9.999e-05,2]
[329086241,1718093961248,660.11978951,9.999e-05,2]
[329086242,1718093983254,471.21,0.00010959,2]
[329086243,1718093992109,1156.26228974,9.999e-05,2]
[329086244,1718094160207,515.78666904,9.999e-05,2]
[329086245,1718094240573,647.08795642,0.00011543,2]
[329086246,1718094291105,276.82,0.00010959,2]
[329086247,1718094301442,230.68,0.00010959,2]
[329086248,1718094314033,838.34008299,9.999e-05,2]
[329086249,1718094322284,192.23,0.00010959,2]
[329086250,1718094323217,155.46813989,0.00010959,2]
[329086251,1718094332782,192.23,0.00010959,2]
[329086252,1718094343280,768.97,0.00010959,2]
[329086253,1718094355072,182.05464704,9.999e-05,2]
[329086254,1718094356816,524.49723493,9.999e-05,2]
[329086255,1718094357664,530.36056878,9.999e-05,2]
[329086256,1718094362764,155.0294556,0.00010959,2]
[329086257,1718094363180,552.55976636,9.999e-05,2]
[329086258,1718094381244,252.46175033,9.999e-05,2]
[329086259,1718094381290,157.76043929,9.999e-05,2]
[329086260,1718094381352,202.41329521,9.999e-05,2]
[329086261,1718094385594,692.66500344,9.999e-05,2]
[329086262,1718094393563,259.1844101,0.00014937,2]
[329086263,1718094404294,660.11978951,9.999e-05,2]
[329086264,1718094408512,24890.0,0.00014389,2]
[329086265,1718094421351,393.416409,0.00014383,2]
[329086278,1718094448796,1156.26228974,9.999e-05,2]
[329086279,1718094458192,507.7077897,0.00014836,2]
[329086281,1718094579922,3000.0,0.0001435,2]
[329086282,1718094600876,1282.24587467,9.999e-05,2]
[329086376,1718094635515,-3120.19596103,0.00015274,4]
[329086377,1718094635526,-401.50403877,0.00015275,2]
[329086379,1718094635540,-4619.60536629,0.00015275,2]
[329086393,1718094635700,-14292.04432818,0.00015275,2]
[329086395,1718094635712,-1984.07396026,0.00015275,2]
[329086397,1718094635723,-7920.63674527,0.00015276,2]
[329086399,1718094635733,-3602.97977755,0.00015276,2]
[329086401,1718094635744,-447.34120243,0.00015278,2]
[329086403,1718094635755,-475.69391966,0.00015378,2]
[329086405,1718094635766,-400.74537079,0.0001538,2]
[329086407,1718094635778,-692.0639849,0.00015381,2]
[329086409,1718094635788,-327.99229229,0.00015382,2]
[329086411,1718094635799,-158.06038721,0.00015382,2]
[329086413,1718094635809,-523.17752712,0.00015383,2]
[329086415,1718094635819,-563.15290467,0.00015383,2]
[329086417,1718094635829,-524.04857954,0.00015383,2]
[329086419,1718094635839,-183.63846185,0.00015383,2]
[329086421,1718094635849,-686.31644292,0.00015383,2]
[329086423,1718094635860,-570.85957129,0.00015383,2]
[329086425,1718094635870,-1268.35575088,0.00015384,2]
[329086427,1718094635880,-213.03415827,0.00015387,2]
[329086428,1718094635890,-1853.86146306,0.00015387,2]
[329086429,1718094635901,-571.82805522,0.00015387,2]
[329086430,1718094635911,-373.84601486,0.00015392,2]
[329086431,1718094635921,-419.21318354,0.00015392,2]
[329086432,1718094635931,-1498.6690245,0.00015396,2]
[329086433,1718094635941,-489.40086406,0.000156,2]
[329086434,1718094635951,-174.08469328,0.00015769,2]
[329086435,1718094635962,-2888.9883204,0.00015772,2]
[329086436,1718094635971,-774.49408999,0.00016864,2]
[329086437,1718094635981,-447.34120237,0.00016938,2]
[329086438,1718094635994,-10490.37515331,0.00017898,2]
[329086439,1718094636004,-1355.41274288,0.00018,2]
[329086440,1718094636015,-2893.66065705,0.00018291,2]
[329086441,1718094636025,-269.13450231,0.00018388,2]
[329086442,1718094636035,-2433.24006747,0.00018389,2]
[329086443,1718094636046,-254.15820769,0.00018389,2]
[329086444,1718094636057,-216.69832233,0.00018389,2]
[329086445,1718094636067,-226.0338235,0.00018389,2]
[329086446,1718094636078,-156.81231124,0.00018389,2]
[329086447,1718094636091,-195.19218723,0.00018389,2]
[329086448,1718094636102,-724.32886096,0.00018389,2]
[329086449,1718094636114,-156.02229876,0.00018389,2]
[329086450,1718094636125,-5615.84884917,0.0001839,2]
[329086451,1718094636136,-26311.93956335,0.00018391,2]
[329086452,1718094636146,-1902.62017077,0.00018391,2]
[329086453,1718094636160,-2574.06413057,0.00018391,2]
[329086506,1718094638940,-1554.21600391,0.00018391,2]
[329086507,1718094638953,-155.0294556,0.00018392,2]
[329086509,1718094638964,-16228.7811546,0.00018392,2]
[329086511,1718094638975,-291.83607441,0.00018392,2]
[329086512,1718094638985,-300.88693981,0.00018392,2]
[329086513,1718094638995,-2100.6780329,0.00018392,2]
[329086514,1718094639007,-606.81007704,0.000185,2]
[329086515,1718094639019,-447.34120237,0.00018599,2]
[329086516,1718094639032,-1079.8,0.00018665,2]
[329086517,1718094639046,-586.89741836,0.000189,2]
[329086518,1718094639064,-348.870483,0.00019178,2]
[329086519,1718094639092,-500.0,0.00019178,2]
[329086520,1718094639115,-639.83434699,0.00019178,2]
[329086521,1718094639128,-500.0,0.00019178,2]
[329086522,1718094639140,-500.0,0.00019178,2]
[329086523,1718094639153,-500.0,0.00019178,2]
[329086524,1718094639168,-300.0,0.00019178,2]
[329086525,1718094639182,-500.0,0.00019178,2]
[329086526,1718094639214,-321.74671708,0.00019178,2]
[329086527,1718094639228,-500.0,0.00019178,2]
[329086528,1718094639240,-206.99053906,0.00019178,2]
[329086529,1718094639268,-500.0,0.00019178,2]
[329086530,1718094639281,-500.0,0.00019178,2]
[329086531,1718094639294,-500.0,0.00019178,2]
[329086532,1718094639313,-500.0,0.00019178,2]
[329086533,1718094639326,-500.0,0.00019178,2]
[329086534,1718094639344,-500.0,0.00019178,2]
[329086535,1718094639363,-500.0,0.00019178,2]
[329086536,1718094639385,-500.0,0.00019178,2]
[329086537,1718094639397,-500.0,0.00019178,2]
[329086538,1718094639412,-500.0,0.00019178,2]
[329086539,1718094639423,-500.0,0.00019178,2]
[329086540,1718094639434,-500.0,0.00019178,2]
[329086541,1718094639447,-500.0,0.00019178,2]
[329086542,1718094639459,-500.0,0.00019178,2]
[329086543,1718094639472,-500.0,0.00019178,2]
[329086544,1718094639483,-500.0,0.00019178,2]
[329086547,1718094639496,-500.0,0.00019178,2]
[329086550,1718094639506,-500.0,0.00019178,2]
[329086551,1718094639517,-500.0,0.00019178,2]
[329086552,1718094639531,-500.0,0.00019178,2]
[329086553,1718094639542,-500.0,0.00019178,2]
[329086554,1718094639556,-500.0,0.00019178,2]
[329086555,1718094639567,-500.0,0.00019178,2]
[329086556,1718094639577,-500.0,0.00019178,2]
[329086557,1718094639590,-500.0,0.00019178,2]
[329086558,1718094639603,-500.0,0.00019178,2]
[329086559,1718094639615,-500.0,0.00019178,2]
[329086560,1718094639626,-500.0,0.00019178,2]
[329086561,1718094639636,-500.0,0.00019178,2]
[329086562,1718094639648,-500.0,0.00019178,2]
[329086563,1718094639658,-500.0,0.00019178,2]
[329086564,1718094639669,-299.03006227,0.00019178,2]
[329086565,1718094639681,-500.0,0.00019178,2]
[329086566,1718094639692,-500.0,0.00019178,2]
[329086567,1718094639702,-500.0,0.00019178,2]
[329086568,1718094639712,-500.0,0.00019178,2]
[329086569,1718094639723,-500.0,0.00019178,2]
[329086570,1718094639734,-500.0,0.00019178,2]
[329086571,1718094639745,-500.0,0.00019178,2]
[329086572,1718094639755,-500.0,0.00019178,2]
[329086573,1718094639766,-500.0,0.00019178,2]
[329086574,1718094639777,-319.96707089,0.00019178,2]
[329086575,1718094639790,-500.0,0.00019178,2]
[329086576,1718094639804,-500.0,0.00019178,2]
[329086577,1718094639816,-500.0,0.00019178,2]
[329086578,1718094639829,-153.71771011,0.00019178,2]
[329086579,1718094639840,-276.18524787,0.00019178,2]
[329086580,1718094639868,-500.0,0.00019178,2]
[329086581,1718094639884,-500.0,0.00019178,2]
[329086582,1718094639901,-200.0,0.00019178,2]
[329086583,1718094639913,-509.34828247,0.00019178,2]
[329086584,1718094640025,-1079.8,0.00019183,2]
[329086585,1718094640037,-2893.66065703,0.0001931,2]
[329086586,1718094640060,-1079.8,0.00019701,2]
[329086587,1718094640073,-529.07913635,0.0002,4]
[329086588,1718094640086,-4634.30810978,0.0002,2]
[329086589,1718094640099,-1110.84029337,0.0002,2]
[329086590,1718094640112,-1079.8,0.00020219,2]
[329086591,1718094640123,-447.34120237,0.00020259,2]
[329086592,1718094640135,-2893.66065703,0.00020328,2]
[329086593,1718094640147,-1079.8,0.00020737,2]
[329086594,1718094640159,-153.0,0.00021175,2]
[329086595,1718094640174,-153.0,0.00021182,2]
[329086596,1718094640185,-1079.8,0.00021255,2]
[329086597,1718094640219,-2893.66065703,0.00021347,2]
[329086598,1718094640230,-393.416409,0.00021575,2]
[329086599,1718094640273,-1079.8,0.00021774,3]
[329086600,1718094640285,-151.0,0.0002189,3]
[329086602,1718094640301,-12354.23411142,0.00021917,15]
[329086603,1718094640315,-500.0,0.00021917,2]
[329086604,1718094640326,-500.0,0.00021917,2]
[329086605,1718094640343,-500.99016206,0.00021917,2]
[329086606,1718094640360,-500.0,0.00021917,2]
[329086607,1718094640376,-500.0,0.00021917,2]
[329086608,1718094640387,-503.53612767,0.00021917,2]
[329086609,1718094640400,-500.0,0.00021917,2]
[329086610,1718094640417,-448.16839941,0.00021917,2]
[329086611,1718094640435,-598.40007129,0.00021917,2]
[329086612,1718094640453,-500.0,0.00021917,2]
[329086613,1718094640466,-500.0,0.00021917,2]
[329086614,1718094640479,-626.41092337,0.00021917,2]
[329086615,1718094640491,-500.0,0.00021917,2]
[329086616,1718094640504,-500.0,0.00021917,2]
[329086617,1718094640516,-613.73470245,0.00021917,2]
[329086618,1718094640528,-500.0,0.00021917,2]
[329086620,1718094640539,-507.92692533,0.00021917,2]
[329086622,1718094640551,-500.0,0.00021917,2]
[329086623,1718094640565,-500.0,0.00021917,2]
[329086624,1718094640579,-500.0,0.00021917,2]
[329086625,1718094640594,-512.02990465,0.00021917,2]
[329086626,1718094640605,-500.0,0.00021917,2]
[329086627,1718094640616,-500.0,0.00021917,2]
[329086628,1718094640628,-502.11987848,0.00021917,2]
[329086629,1718094640643,-505.24104899,0.00021917,2]
[329086630,1718094640658,-500.0,0.00021917,2]
[329086631,1718094640670,-500.0,0.00021917,2]
[329086632,1718094640681,-500.85719911,0.00021917,2]
[329086633,1718094640693,-500.0,0.00021917,2]
[329086634,1718094640706,-500.0,0.00021917,2]
[329086635,1718094640718,-500.0,0.00021917,2]
[329086636,1718094640731,-500.0,0.00021917,2]
[329086639,1718094640754,-634.69146799,0.00021917,2]
[329086641,1718094640771,-500.0,0.00021917,2]
[329086643,1718094640784,-500.0,0.00021917,2]
[329086645,1718094640805,-500.0,0.00021917,2]
[329086646,1718094640820,-457.23110648,0.00021917,2]
[329086647,1718094640836,-500.0,0.00021917,2]
[329086648,1718094640850,-502.65383392,0.00021917,2]
[329086649,1718094640864,-500.0,0.00021917,2]
[329086650,1718094640876,-500.0,0.00021917,2]
[329086651,1718094640889,-155.20651783,0.00021917,2]
[329086652,1718094640899,-500.0,0.00021917,2]
[329086653,1718094640911,-500.0,0.00021917,2]
[329086654,1718094640921,-500.0,0.00021917,2]
[329086655,1718094640933,-500.0,0.00021917,2]
[329086656,1718094640947,-500.0,0.00021917,2]
[329086657,1718094640958,-500.0,0.00021917,2]
[329086658,1718094640974,-500.0,0.00021917,2]
[329086659,1718094640985,-500.0,0.00021917,2]
[329086660,1718094640996,-500.0,0.00021917,2]
[329086661,1718094641007,-500.0,0.00021917,2]
[329086662,1718094641018,-500.0,0.00021917,2]
[329086663,1718094641028,-502.37314405,0.00021917,2]
[329086664,1718094641041,-500.0,0.00021917,2]
[329086665,1718094641052,-500.0,0.00021917,2]
[329086666,1718094641065,-500.0,0.00021917,2]
[329086667,1718094641077,-500.0,0.00021917,2]
[329086669,1718094641181,-500.0,0.00021917,2]
[329086670,1718094641198,-519.35254762,0.00021917,2]
[329086671,1718094641209,-500.0,0.00021917,2]
[329086672,1718094641219,-500.0,0.00021917,2]
[329086673,1718094641230,-500.0,0.00021917,2]
[329086674,1718094641240,-500.0,0.00021917,2]
[329086675,1718094641250,-500.0,0.00021917,2]
[329086677,1718094641261,-500.0,0.00021917,2]
[329086679,1718094641272,-500.0,0.00021917,2]
[329086680,1718094641282,-500.0,0.00021917,2]
[329086681,1718094641292,-501.83294603,0.00021917,2]
[329086682,1718094641302,-506.10660244,0.00021917,2]
[329086683,1718094641312,-500.0,0.00021917,2]
[329086684,1718094641322,-639.5121875,0.00021917,2]
[329086685,1718094641332,-500.0,0.00021917,2]
[329086686,1718094641342,-500.0,0.00021917,2]
[329086687,1718094641353,-537.9835171,0.00021917,2]
[329086688,1718094641366,-500.0,0.00021917,2]
[329086689,1718094641377,-500.0,0.00021917,2]
[329086690,1718094641387,-500.0,0.00021917,2]
[329086691,1718094641397,-500.0,0.00021917,2]
[329086692,1718094641407,-175.44503207,0.00021917,2]
[329086693,1718094641418,-500.0,0.00021917,2]
[329086694,1718094641430,-472.06140797,0.00021917,2]
[329086695,1718094641443,-500.0,0.00021917,2]
[329086696,1718094641454,-500.0,0.00021917,2]
[329086697,1718094641465,-500.0,0.00021917,2]
[329086698,1718094641477,-500.0,0.00021917,2]
[329086699,1718094641491,-500.0,0.00021917,2]
[329086700,1718094641505,-500.0,0.00021917,2]
[329086702,1718094641517,-500.0,0.00021917,2]
[329086704,1718094641528,-500.0,0.00021917,2]
[329086705,1718094641538,-500.0,0.00021917,2]
[329086706,1718094641549,-500.0,0.00021917,2]
[329086707,1718094641561,-500.0,0.00021917,2]
[329086708,1718094641572,-500.0,0.00021917,2]
[329086709,1718094641583,-333.9468456,0.00021917,2]
[329086710,1718094641714,-166.0531544,0.00021917,2]
[329086711,1718094641724,-500.0,0.00021917,2]
[329086713,1718094641735,-500.0,0.00021917,2]
[329086715,1718094641745,-495.66988474,0.00021917,2]
[329086716,1718094641757,-4.33011526,0.00021917,2]
[329086717,1718094641768,-507.19983456,0.00021917,2]
[329086718,1718094641778,-552.30676508,0.00021917,2]
[329086719,1718094641788,-500.0,0.00021917,2]
[329086720,1718094641798,-500.0,0.00021917,2]
[329086721,1718094641809,-388.74845996,0.00021917,2]
[329086722,1718094641820,-500.0,0.00021917,2]
[329086723,1718094641833,-516.44020181,0.00021917,2]
[329086724,1718094641845,-508.10020336,0.00021917,2]
[329086725,1718094641858,-500.0,0.00021917,2]
[329086726,1718094641870,-500.0,0.00021917,2]
[329086727,1718094641880,-497.34216697,0.00021917,2]
[329086728,1718094641890,-500.0,0.00021917,2]
[329086729,1718094641900,-502.71974628,0.00021917,2]
[329086730,1718094641912,-500.0,0.00021917,2]
[329086732,1718094641925,-500.0,0.00021917,2]
[329086733,1718094641936,-500.0,0.00021917,2]
[329086734,1718094641946,-536.77771604,0.00021917,2]
[329086735,1718094641956,-501.62414382,0.00021917,2]
[329086736,1718094641967,-500.0,0.00021917,2]
[329086737,1718094641977,-500.0,0.00021917,2]
[329086738,1718094641987,-500.0,0.00021917,2]
[329086739,1718094641998,-500.0,0.00021917,2]
[329086740,1718094642009,-500.0,0.00021917,2]
[329086741,1718094642020,-502.33813299,0.00021917,2]
[329086742,1718094642031,-500.0,0.00021917,2]
[329086743,1718094642041,-500.0,0.00021917,2]
[329086744,1718094642051,-503.93438398,0.00021917,2]
[329086745,1718094642063,-500.15094669,0.00021917,2]
[329086746,1718094642073,-502.13028345,0.00021917,2]
[329086747,1718094642083,-500.0,0.00021917,2]
[329086748,1718094642099,-500.0,0.00021917,2]
[329086749,1718094642113,-502.98750538,0.00021917,2]
[329086750,1718094642124,-535.27825355,0.00021917,2]
[329086751,1718094642136,-503.80865292,0.00021917,2]
[329086752,1718094642150,-1191.0,0.00021917,2]
[329086753,1718094642161,-151.0,0.00021917,2]
[329086754,1718094642173,-504.23118899,0.00021917,2]
[329086755,1718094642184,-500.0,0.00021917,2]
[329086756,1718094642204,-500.0,0.00021917,2]
[329086757,1718094642215,-500.0,0.00021917,2]
[329086758,1718094642226,-500.0,0.00021917,2]
[329086759,1718094642237,-500.0,0.00021917,2]
[329086760,1718094642247,-500.0,0.00021917,2]
[329086761,1718094642259,-495.15691351,0.00021917,2]
[329086762,1718094642270,-1250.16,0.00021917,2]
[329086763,1718094642281,-155.845432,0.00021917,2]
[329086764,1718094642291,-509.72041586,0.00021917,2]
[329086765,1718094642302,-500.0,0.00021917,2]
[329086766,1718094642313,-155.845432,0.00021917,2]
[329086767,1718094642323,-500.0,0.00021917,2]
[329086768,1718094642334,-500.0,0.00021917,2]
[329086769,1718094642345,-516.18877623,0.00021917,2]
[329086770,1718094642358,-500.0,0.00021917,2]
[329086771,1718094642368,-500.0,0.00021917,2]
[329086772,1718094642378,-500.0,0.00021917,2]
[329086773,1718094642478,-500.0,0.00021917,2]
[329086774,1718094642489,-151.988398,0.00021917,2]
[329086775,1718094642500,-500.0,0.00021917,2]
[329086776,1718094642511,-543.65113368,0.00021917,2]
[329086777,1718094642521,-502.57518118,0.00021917,2]
[329086778,1718094642531,-300.29102287,0.00021917,2]
[329086779,1718094642542,-500.0,0.00021917,2]
[329086780,1718094642553,-500.0,0.00021917,2]
[329086781,1718094642563,-500.0,0.00021917,2]
[329086782,1718094642574,-504.60574249,0.00021917,2]
[329086783,1718094642585,-500.0,0.00021917,2]
[329086784,1718094642595,-510.13386643,0.00021917,2]
[329086785,1718094642606,-500.0,0.00021917,2]
[329086786,1718094642619,-675.13,0.00021917,2]
[329086787,1718094642630,-500.0,0.00021917,2]
[329086788,1718094642640,-385.65748618,0.00021917,2]
[329086789,1718094642651,-500.0,0.00021917,2]
[329086790,1718094642661,-500.0,0.00021917,2]
[329086791,1718094642671,-262.099115,0.00021917,2]
[329086792,1718094642681,-500.0,0.00021917,2]
[329086793,1718094642692,-505.76753032,0.00021917,2]
[329086794,1718094642703,-520.10187489,0.00021917,2]
[329086795,1718094642713,-500.0,0.00021917,2]
[329086796,1718094642723,-500.0,0.00021917,2]
[329086797,1718094642733,-646.53,0.00021917,2]
[329086798,1718094642743,-500.0,0.00021917,2]
[329086799,1718094642754,-500.0,0.00021917,2]
[329086800,1718094642766,-500.0,0.00021917,2]
[329086801,1718094642775,-500.0,0.00021917,2]
[329086802,1718094642786,-200.78800434,0.00021917,2]
[329086804,1718094642797,-151.0,0.00021917,2]
[329086805,1718094642807,-500.0,0.00021917,2]
[329086806,1718094642818,-500.0,0.00021917,2]
[329086807,1718094642828,-500.0,0.00021917,2]
[329086808,1718094642838,-500.0,0.00021917,2]
[329086809,1718094642849,-151.0,0.00021917,2]
[329086810,1718094642861,-500.0,0.00021917,2]
[329086811,1718094642871,-151.0,0.00021917,2]
[329086812,1718094642881,-500.0,0.00021917,2]